[Event "1st 4NCL International U2050"]
[Site "Telford"]
[Date "2018.11.04"]
[Round "9"]
[White "Towers, Nigel S"]
[Black "Neatherway, A Philip"]
[Result "1/2-1/2"]
[ECO "C06"]
[WhiteElo "1843"]
[BlackElo "1813"]
[Annotator "NA"]
[PlyCount "42"]
[EventDate "2018.10.31"]
[EventType "swiss"]
[EventCountry "GBR"]
[SourceTitle "playchess.com"]
[Source "ChessBase"]
[SourceQuality "1"]
[TimeControl "5400+30"]

{[%evp 8,42,33,35,42,35,39,16,34,20,55,45,45,32767,32767,18,32767,37,50,26,24,-7,7,-45,58,56,72,68,76,74,121,104,79,70,32767,32767,68]} 1. e4 {[%emt 0:00:00]} e6 {[%emt 0:00:00]} 2. d4 {[%emt 0:00:00]} d5 {[%emt 0:00:00]} 3. Nd2 {[%emt 0:00:00]} Nf6 {[%emt 0:00:00]} 4. e5 {[%emt 0:00:00]} Nfd7 {[%emt 0:00:00]} 5. Bd3 {[%emt 0:00:00]} c5 {[%emt 0:00:00]} 6. c3 {[%emt 0:00:00]} Nc6 {[%emt 0:00:00]} 7. Ngf3 {[%emt 0:00:32]} cxd4 {[%emt 0:00:16]} 8. cxd4 {[%emt 0:00:00]} f6 {[%emt 0:00:04]} 9. exf6 {[%emt 0:00:04]} Nxf6 {[%emt 0:00:05] LiveBook: 57 Games} 10. O-O {[%emt 0:01:34]} Bd6 {[%emt 0:00:04]} 11. Re1 {[%emt 0:03:48]} O-O {[%emt 0:00:06]} 12. Nf1 {[%emt 0:02:07] C06: French Tarrasch: 3...Nf6 4 e5 Nfd7 5 Bd3 main lines} Bd7 {[%emt 0:00:41]} (12... Qb6 13. Rb1 Nb4 14. a3 Nxd3 15. Qxd3 Bd7 16. Ng3 Bb5 17. Qd1 Rae8 18. Ne5 Bxe5 19. Rxe5 Nd7 20. Rg5 e5 21. Be3 h6 22. Rh5 Qg6 23. Rc1 Bc6 {1-0 (23) Carlsen,M (2802)-Ponomariov,R (2744) Moscow 2010}) 13. Bg5 {[%emt 0:01:06]} Rc8 {[%emt 0:01:56]} 14. Rc1 $146 {[%emt 0:02:47]} ({Predecessor:} 14. Ne5 Nb4 15. Bb1 Qc7 16. Bxf6 Rxf6 17. Qh5 h6 18. Ng4 Be7 19. Nxf6+ Bxf6 20. Bg6 Qb6 21. Ne3 Bxd4 22. Bf7+ Kf8 23. Ng4 Nc2 24. Bg6 Nxa1 25. Rxa1 Qxb2 {0-1 (25) Nguyen,H (1577)-Seifert,R (2010) Leutersdorf 2004}) 14... h6 {[%emt 0:03:36]} 15. Bh4 {[%emt 0:01:26]} (15. Bd2 $11) 15... Qe8 {[%emt 0:02:29]} (15... Qb6 $1 $11) 16. Bg3 {[%emt 0:01:18]} Bxg3 {[%emt 0:01:11]} 17. Nxg3 {[%emt 0:00:49]} Ne7 {[%emt 0:01:56]} 18. Qe2 {[%emt 0:04:58]} Nh5 {[%emt 0:02:01]} (18... Rxc1 $14 19. Rxc1 Nc6) 19. Nxh5 {[%emt 0:04:25]} Qxh5 {[%emt 0:00:07]} 20. Ne5 {[%emt 0:01:21]} Qxe2 {[%emt 0:02:28]} 21. Bxe2 {[%emt 0:00:07]} Rxc1 $14 {[%emt 0:05:19]} 1/2-1/2

[Event "1st 4NCL International U2050"]
[Site "Telford"]
[Date "2018.11.04"]
[Round "9"]
[White "Gogia, Armaan"]
[Black "Murphy, Ross"]
[Result "1-0"]
[ECO "D01"]
[WhiteElo "1808"]
[BlackElo "1652"]
[Annotator "NA RC"]
[PlyCount "45"]
[EventDate "2018.10.31"]
[EventType "swiss"]
[EventCountry "GBR"]
[SourceTitle "playchess.com"]
[Source "ChessBase"]
[SourceQuality "1"]
[TimeControl "5400+30"]

{[%evp 13,40,68,77,50,53,54,56,43,98,116,118,121,120,117,122,118,133,118,146,32767,32767,351,969,10839,1058,32767,1054,29988,1075]} 1. Nc3 {[%emt 0:00:41]} Nf6 {[%emt 0:00:00]} 2. d4 {[%emt 0:01:07]} d5 {[%emt 0:00:00]} 3. Bg5 {[%emt 0:00:05]} Ne4 {[%emt 0:00:01]} 4. Nxe4 {[%emt 0:02:22]} dxe4 {[%emt 0:00:03]} 5. e3 {[%emt 0:00:01]} c5 {[%emt 0:00:52] D01: Veresov Opening} 6. c3 {[%emt 0:02:37]} Qb6 {[%emt 0:00:25]} 7. Qc2 {[%emt 0:02:52]} e6 $146 {[%emt 0:00:15]} ({Predecessor:} 7... cxd4 8. exd4 Bf5 9. Ne2 h6 10. Be3 g5 11. Ng3 Bg6 12. h4 gxh4 13. Rxh4 {1-0 (45) Jimenez Martin,G (2136)-Carrascoso Morales,A (2288) Mislata 2013}) 8. Bf4 {[%emt 0:04:52]} Bd7 {[%emt 0:01:09]} 9. f3 {[%emt 0:02:39]} exf3 {[%emt 0:00:12]} 10. Nxf3 {[%emt 0:01:49]} Nc6 {[%emt 0:00:47]} 11. Bd3 {[%emt 0:01:09]} cxd4 {[%emt 0:00:21]} 12. exd4 {[%emt 0:01:09]} Rc8 {[%emt 0:00:46]} 13. Qe2 {[%emt 0:03:09]} Be7 {[%emt 0:00:37]} 14. O-O {[%emt 0:00:48]} O-O {[%emt 0:00:19]} 15. Kh1 {[%emt 0:02:02]} Bf6 {[%emt 0:00:25]} 16. Ng5 {[%emt 0:08:05]} g6 {[%emt 0:03:56] [#]} 17. Nxh7 $1 {[%emt 0:04:48]} Kxh7 $2 {[%emt 0:00:19] [#]} (17... Bg7) 18. Qh5+ $1 {[%emt 0:00:28]} Kg8 {[%emt 0:03:15] [#]} 19. Bxg6 $1 {[%emt 0:00:08]} fxg6 {[%emt 0:00:25]} 20. Qxg6+ {[%emt 0:00:02]} Kh8 {[%emt 0:00:54]} 21. Rf3 {[%emt 0:03:03]} Bg7 {[%emt 0:01:32]} 22. Rg3 {[%emt 0:01:05]} Rf7 {[%emt 0:01:39]} 23. Qxf7 {[%emt 0:01:33]} 1-0

[Event "1st 4NCL International U2050"]
[Site "Telford"]
[Date "2018.11.04"]
[Round "9"]
[White "Ward, Andrew"]
[Black "Benson, Paul J"]
[Result "1/2-1/2"]
[ECO "A80"]
[WhiteElo "1790"]
[BlackElo "1912"]
[Annotator "NA"]
[PlyCount "108"]
[EventDate "2018.10.31"]
[EventType "swiss"]
[EventCountry "GBR"]
[SourceTitle "playchess.com"]
[Source "ChessBase"]
[SourceQuality "1"]
[TimeControl "5400+30"]

{[%evp 9,108,56,61,32767,51,28,35,29,37,16,0,32767,4,32767,14,-18,-27,-35,-38,-26,-14,-43,25,0,78,31,103,106,190,179,180,138,124,126,122,104,102,32767,32,31,30,26,59,0,0,0,3,19,368,383,402,404,405,430,487,447,468,32767,488,443,512,401,550,499,420,450,401,324,337,370,391,32767,32767,4740,5724,32767,833,32767,169,14,14,8,8,32767,32767,32767,32767,32767,15,32767,8,32767,32767,32767,32767,32767,8,32767,32767,8,8]} 1. d4 {[%emt 0:00:08]} f5 {[%emt 0:00:20]} 2. Bg5 {[%emt 0:00:02]} c6 {[%emt 0:00:26]} 3. Nc3 {[%emt 0:01:12]} Qb6 {[%emt 0:01:12]} 4. Rb1 {[%emt 0:01:28]} d6 {[%emt 0:02:02]} 5. e3 {[%emt 0:02:34]} Be6 {[%emt 0:04:12]} 6. Bd3 {[%emt 0:01:12]} Nd7 {[%emt 0:02:44]} 7. Nge2 {[%emt 0:02:28]} g6 {[%emt 0:00:43]} 8. O-O {[%emt 0:04:06]} Bg7 {[%emt 0:04:47]} 9. b4 {[%emt 0:05:02]} Ngf6 {[%emt 0:04:13]} 10. Na4 {[%emt 0:05:48]} Qc7 {[%emt 0:03:37]} 11. c4 {[%emt 0:01:12]} O-O {[%emt 0:01:21]} 12. Nac3 {[%emt 0:00:43]} Bf7 {[%emt 0:06:22]} 13. a4 {[%emt 0:05:28]} e5 {[%emt 0:03:12]} 14. f3 {[%emt 0:00:45]} Rfe8 {[%emt 0:07:32]} 15. c5 {[%emt 0:04:37]} Nd5 {[%emt 0:04:43]} ({Better is} 15... exd4 $15 16. exd4 dxc5 17. bxc5 b6) 16. Nxd5 {[%emt 0:01:43]} Bxd5 {[%emt 0:02:53]} 17. e4 {[%emt 1:00:02]} Be6 {[%emt 0:00:58]} 18. exf5 {[%emt 0:06:24]} Bxf5 {[%emt 0:03:31]} (18... gxf5 $16 {was called for.} 19. Ng3 exd4) 19. Bxf5 {[%emt 0:03:05]} gxf5 {[%emt 0:00:18]} 20. Ng3 {[%emt 0:00:47]} (20. dxe5 $18 Nxe5 21. cxd6) 20... f4 {[%emt 0:13:39]} 21. Nf5 {[%emt 0:01:02]} d5 {[%emt 0:01:03]} 22. Nd6 {[%emt 0:03:11]} Re6 {[%emt 0:12:00]} 23. Nf5 {[%emt 0:02:19]} Rf8 {[%emt 0:03:38]} 24. Nxg7 {[%emt 0:01:12]} Kxg7 {[%emt 0:00:13]} 25. b5 {[%emt 0:04:13]} exd4 {[%emt 0:03:52]} 26. Qxd4+ {[%emt 0:00:28]} Qe5 {[%emt 0:00:50]} 27. Qxe5+ {[%emt 0:00:32]} Rxe5 {[%emt 0:00:39]} 28. bxc6 {[%emt 0:00:12]} Nxc5 $2 {[%emt 0:03:10]} (28... bxc6 $11 29. Bh4 (29. Rb7 Rxg5 30. Rxd7+ Rf7 $11) 29... Rf7) 29. cxb7 {[%emt 0:01:06]} Rxg5 {[%emt 0:04:01]} 30. b8=Q {[%emt 0:00:08]} Rxb8 {[%emt 0:00:09]} 31. Rxb8 {[%emt 0:00:09]} Nxa4 {[%emt 0:00:22]} 32. Rb7+ {[%emt 0:00:11]} Kg6 {[%emt 0:00:11]} 33. Rxa7 {[%emt 0:00:10]} Nc3 {[%emt 0:00:34]} 34. Kf2 {[%emt 0:02:40]} d4 {[%emt 0:00:19]} 35. Rd7 {[%emt 0:00:42]} Nb5 {[%emt 0:00:46]} 36. Rd1 {[%emt 0:03:03]} Rc5 {[%emt 0:01:08]} 37. Rd2 {[%emt 0:01:12]} h5 {[%emt 0:02:08]} 38. g3 {[%emt 0:01:48]} fxg3+ {[%emt 0:01:45]} 39. hxg3 {[%emt 0:00:27]} Kh6 {[%emt 0:00:32]} 40. Ra2 {[%emt 0:11:08]} Kg6 {[%emt 0:00:35]} 41. Ra6+ {[%emt 0:01:34]} Kg5 {[%emt 0:00:40]} 42. Rg7+ {[%emt 0:01:36]} Kf5 {[%emt 0:00:19]} 43. Rag6 {[%emt 0:00:16]} Rc2+ {[%emt 0:01:27] [#]} 44. Ke1 $2 {[%emt 0:01:41]} (44. Kf1 $1 $18) 44... d3 $1 {[%emt 0:00:51]} 45. Rg5+ {[%emt 0:01:40]} Kf6 {[%emt 0:00:10]} 46. Rxb5 {[%emt 0:03:01]} Kxg7 {[%emt 0:00:37]} 47. Rxh5 {[%emt 0:00:10]} Rg2 {[%emt 0:00:28]} 48. Rd5 {[%emt 0:00:50]} Rxg3 {[%emt 0:00:51]} 49. Rxd3 {[%emt 0:00:08]} Rg2 {[%emt 0:00:17]} 50. Rd2 {[%emt 0:00:21]} Rxd2 {[%emt 0:00:45]} 51. Kxd2 {[%emt 0:00:08]} Kf6 {[%emt 0:00:11]} 52. Kd3 {[%emt 0:00:25]} Kf5 {[%emt 0:00:12]} 53. Ke3 {[%emt 0:00:09]} Ke5 {[%emt 0:00:12]} 54. f4+ {[%emt 0:00:19]} Kf5 $11 {[%emt 0:00:08]} 1/2-1/2

[Event "1st 4NCL International U2050"]
[Site "Telford"]
[Date "2018.11.04"]
[Round "9"]
[White "Potter, Steven"]
[Black "Whitehead, Mark A"]
[Result "1/2-1/2"]
[ECO "A45"]
[WhiteElo "1771"]
[BlackElo "1945"]
[Annotator "NA"]
[PlyCount "20"]
[EventDate "2018.10.31"]
[EventType "swiss"]
[EventCountry "GBR"]
[SourceTitle "playchess.com"]
[Source "ChessBase"]
[SourceQuality "1"]
[TimeControl "5400+30"]

{[%evp 16,19,-3,-3,12,-6]} 1. d4 {[%emt 0:00:00]} Nf6 {[%emt 0:00:00]} 2. Bg5 {[%emt 0:00:00]} e6 {[%emt 0:00:00]} 3. e3 {[%emt 0:00:00]} Be7 {[%emt 0:01:10]} 4. Bd3 {[%emt 0:00:00]} c5 {[%emt 0:00:50]} 5. c3 {[%emt 0:00:00]} d6 {[%emt 0:01:51]} 6. Bxf6 {[%emt 0:00:46]} Bxf6 {[%emt 0:00:13]} 7. Nd2 {[%emt 0:00:11]} Nd7 {[%emt 0:00:58]} 8. Ngf3 {[%emt 0:00:42]} a6 {[%emt 0:00:46]} 9. O-O {[%emt 0:00:34]} b5 {[%emt 0:02:56]} 10. Ne4 $11 {[%emt 0:01:27]} Be7 {[%emt 0:01:38]} 1/2-1/2

[Event "1st 4NCL International U2050"]
[Site "Telford"]
[Date "2018.11.04"]
[Round "9"]
[White "Gorgun, Aliriza Atif"]
[Black "De Coverly, Roger D"]
[Result "1/2-1/2"]
[ECO "C68"]
[WhiteElo "1739"]
[BlackElo "1946"]
[Annotator "NA RC"]
[PlyCount "76"]
[EventDate "2018.10.31"]
[EventType "swiss"]
[EventCountry "GBR"]
[SourceTitle "playchess.com"]
[Source "ChessBase"]
[SourceQuality "1"]
[TimeControl "5400+30"]

{[%evp 17,75,-40,32767,-42,-1,-33,-35,-37,-66,-60,32767,32767,32767,-108,32767,32767,32767,32767,32767,-118,-92,-143,-86,-104,-69,-150,-50,-53,-55,-49,-48,-54,32767,32767,32767,-66,0,32767,32767,32767,32767,-32,32767,-22,32767,32767,11,0,5,0,0,0,25,35,45,-114,-100,-136,48,-14]} 1. e4 {[%emt 0:00:00]} e5 {[%emt 0:00:00]} 2. Nf3 {[%emt 0:00:00]} Nc6 {[%emt 0:00:00]} 3. Bb5 {[%emt 0:00:00]} a6 {[%emt 0:00:00]} 4. Bxc6 {[%emt 0:00:50]} dxc6 {[%emt 0:00:01]} 5. d4 {[%emt 0:00:07]} exd4 {[%emt 0:00:26]} 6. Qxd4 {[%emt 0:00:07]} Qxd4 {[%emt 0:00:10]} 7. Nxd4 {[%emt 0:00:05]} Bd7 {[%emt 0:01:10]} 8. O-O {[%emt 0:02:43]} O-O-O {[%emt 0:01:07]} 9. Bg5 {[%emt 0:04:16] LiveBook: 3 Partien C68: Ruy Lopez: Exchange Variation, sidelines} Re8 {[%emt 0:02:43]} (9... f6 10. Be3 Ne7 11. Nc3 Ng6 12. a3 Re8 13. Rfe1 c5 14. Nf5 Ne5 15. Bf4 g6 16. Ne3 Bd6 {0-1 (44) Ivanov,A (2400)-Romanov,E (2619) Sochi 2016}) 10. Nc3 {[%emt 0:07:48]} g6 {[%emt 0:03:58]} 11. Rfe1 {[%emt 0:04:48]} Bg7 {[%emt 0:01:50]} 12. Rad1 {[%emt 0:02:00]} h6 $146 {[%emt 0:03:15]} ({Predecessor:} 12... Ne7 13. e5 Nd5 14. Nxd5 cxd5 15. f4 Bg4 16. Rd3 f6 17. exf6 Rxe1+ 18. Kf2 Rhe8 19. fxg7 h5 20. g8=Q {1-0 (20) Szymaniak,H (1992)-Ofstad,P (2175) Bad Wildbad 1997}) 13. Be3 {[%emt 0:05:38]} c5 {[%emt 0:02:42]} 14. Nb3 {[%emt 0:02:59]} b6 {[%emt 0:01:00]} 15. f3 {[%emt 0:07:53]} Ne7 {[%emt 0:03:03]} 16. f4 {[%emt 0:11:45]} Nc6 {[%emt 0:02:18]} 17. Bf2 {[%emt 0:00:41]} Bg4 {[%emt 0:05:08]} 18. Rd2 {[%emt 0:02:45]} Rd8 {[%emt 0:00:55]} 19. h3 {[%emt 0:00:49]} Rxd2 {[%emt 0:01:41]} (19... Be6 $142 20. Rde2 Bc4) 20. Nxd2 {[%emt 0:00:17]} Be6 {[%emt 0:00:19]} 21. e5 {[%emt 0:00:25]} (21. a3 $15) 21... Nd4 {[%emt 0:02:40]} (21... g5 $17 22. Ne2 Bxa2) 22. Bxd4 {[%emt 0:00:49]} cxd4 {[%emt 0:00:25]} 23. Nce4 {[%emt 0:01:10]} Rd8 {[%emt 0:02:09]} ({Lieber nicht} 23... Bxa2 24. b3 $16) 24. g4 {[%emt 0:01:46]} Bf8 {[%emt 0:02:24]} 25. Rf1 {[%emt 0:01:58]} Bd5 {[%emt 0:06:51]} 26. Nf6 {[%emt 0:02:55] [#]} Be7 {[%emt 0:07:43]} (26... d3 $1 $17 27. c3 Bc5+ 28. Kh2 g5 29. fxg5 hxg5 30. Nxd5 Rxd5) 27. Nxd5 {[%emt 0:05:12]} Rxd5 {[%emt 0:00:08]} 28. Ne4 {[%emt 0:00:51]} c5 {[%emt 0:02:23]} 29. c4 {[%emt 0:05:57]} dxc3 {[%emt 0:04:16]} 30. Nxc3 {[%emt 0:01:00]} Rd3 {[%emt 0:01:09]} 31. Kg2 {[%emt 0:00:09]} b5 {[%emt 0:07:00]} 32. Rd1 {[%emt 0:00:34]} Rxd1 {[%emt 0:03:10]} 33. Nxd1 {[%emt 0:00:03]} Kd7 {[%emt 0:00:18]} 34. Kf3 {[%emt 0:00:23]} Kc6 {[%emt 0:00:43]} 35. Ke4 {[%emt 0:00:32]} c4 $2 {[%emt 0:01:26]} 36. Kd4 {[%emt 0:04:28]} (36. Nc3 $14) 36... Bc5+ {[%emt 0:01:27]} 37. Ke4 {[%emt 0:00:09] [#]} Be7 {[%emt 0:03:32]} (37... b4 $1 $17) 38. Kd4 $11 {[%emt 0:00:07]} Bc5+ {[%emt 0:00:04]} 1/2-1/2

[Event "1st 4NCL International U2050"]
[Site "Telford"]
[Date "2018.11.04"]
[Round "9"]
[White "Di-Vetta, Andrew"]
[Black "Burgoyne, Peter A"]
[Result "1/2-1/2"]
[ECO "A45"]
[WhiteElo "1681"]
[BlackElo "1665"]
[Annotator "NA RC"]
[PlyCount "76"]
[EventDate "2018.10.31"]
[EventType "swiss"]
[EventCountry "GBR"]
[SourceTitle "playchess.com"]
[Source "ChessBase"]
[SourceQuality "1"]
[TimeControl "5400+30"]

1. d4 {[%emt 0:00:00]} Nf6 {[%emt 0:00:00]} 2. Bf4 {[%emt 0:00:29]} c5 {[%emt 0:00:07]} 3. e3 {[%emt 0:00:47]} Qa5+ {[%emt 0:03:31]} 4. Qd2 {[%emt 0:01:39]} Qxd2+ {[%emt 0:00:35]} 5. Nxd2 {[%emt 0:00:06]} cxd4 {[%emt 0:00:26]} 6. exd4 {[%emt 0:00:07]} g6 {[%emt 0:00:48]} 7. Ngf3 {[%emt 0:00:27]} Bg7 {[%emt 0:00:06]} 8. Bd3 {[%emt 0:02:36]} O-O {[%emt 0:00:15]} 9. c3 {[%emt 0:01:08]} Nc6 {[%emt 0:00:53]} 10. O-O {[%emt 0:03:31]} d6 {[%emt 0:00:26]} 11. h3 {[%emt 0:03:02]} Bd7 {[%emt 0:00:40]} 12. Rfe1 {[%emt 0:01:29]} Rfe8 {[%emt 0:00:10]} 13. Bh2 {[%emt 0:01:27]} Nd5 {[%emt 0:06:36]} 14. Bc4 {[%emt 0:08:33]} Nb6 {[%emt 0:00:38]} 15. Bb3 {[%emt 0:00:22]} Na5 {[%emt 0:01:42]} 16. Bc2 {[%emt 0:01:42]} Nac4 {[%emt 0:01:47]} 17. Nxc4 {[%emt 0:00:45]} Nxc4 {[%emt 0:00:16]} 18. b3 {[%emt 0:02:38]} Nb6 {[%emt 0:00:25]} 19. Rad1 {[%emt 0:01:43]} Bc6 {[%emt 0:01:22]} 20. c4 {[%emt 0:00:53]} Bxf3 {[%emt 0:07:27]} 21. gxf3 {[%emt 0:00:05]} e5 {[%emt 0:00:21]} 22. d5 {[%emt 0:00:49]} Nd7 {[%emt 0:02:34]} 23. f4 {[%emt 0:00:46]} exf4 {[%emt 0:01:52]} 24. Bxf4 {[%emt 0:01:23]} Ne5 {[%emt 0:05:07]} 25. Kg2 {[%emt 0:00:39]} b6 {[%emt 0:00:34]} 26. Bc1 {[%emt 0:02:03]} Nd7 {[%emt 0:00:49]} 27. Bd2 {[%emt 0:02:35]} Kf8 {[%emt 0:02:54]} 28. f4 {[%emt 0:00:45]} f5 {[%emt 0:03:00]} 29. Kf3 {[%emt 0:03:01]} Rxe1 {[%emt 0:03:58]} 30. Rxe1 {[%emt 0:00:09]} Re8 {[%emt 0:00:09]} 31. Rxe8+ {[%emt 0:00:55]} Kxe8 {[%emt 0:00:06]} 32. b4 {[%emt 0:01:33]} Bd4 {[%emt 0:01:42]} 33. Ba4 {[%emt 0:01:06]} Ke7 {[%emt 0:00:36]} 34. Be1 {[%emt 0:01:35]} Nf6 {[%emt 0:01:48]} 35. Bh4 {[%emt 0:00:48]} Kf7 {[%emt 0:02:14]} 36. Bc6 {[%emt 0:01:54]} Ne4 {[%emt 0:07:20]} 37. Be1 {[%emt 0:09:19]} h6 {[%emt 0:02:09]} 38. Bd7 {[%emt 0:03:41]} Ke7 {[%emt 0:10:38]} 1/2-1/2

[Event "1st 4NCL International U2050"]
[Site "Telford"]
[Date "2018.11.04"]
[Round "9"]
[White "Stubbs, Oliver"]
[Black "Hughes, Peter"]
[Result "1/2-1/2"]
[ECO "A80"]
[WhiteElo "1672"]
[BlackElo "1874"]
[Annotator "NA RC"]
[PlyCount "29"]
[EventDate "2018.10.31"]
[EventType "swiss"]
[EventCountry "GBR"]
[SourceTitle "playchess.com"]
[Source "ChessBase"]
[SourceQuality "1"]
[TimeControl "5400+30"]

{[%evp 13,30,-21,-29,-23,14,-28,-10,-20,-11,32767,32767,-1,32767,32767,32767,32767,2,-18,-8]} 1. d4 {[%emt 0:00:00]} f5 {[%emt 0:00:00]} 2. Nf3 {[%emt 0:00:00]} Nf6 {[%emt 0:00:00]} 3. Bf4 {[%emt 0:00:49]} g6 {[%emt 0:01:08]} 4. e3 {[%emt 0:00:16]} Bg7 {[%emt 0:00:20]} 5. Nbd2 {[%emt 0:00:28]} O-O {[%emt 0:00:33]} 6. Bd3 {[%emt 0:00:39]} d6 {[%emt 0:01:32]} 7. h4 {[%emt 0:03:30]} Nc6 {[%emt 0:09:57]} 8. Bc4+ {[%emt 0:06:32]} e6 {[%emt 0:02:02]} 9. Bg5 {[%emt 0:02:54]} Qe8 {[%emt 0:08:03]} 10. Bxf6 {[%emt 0:00:34]} Bxf6 {[%emt 0:01:26]} 11. c3 {[%emt 0:04:55]} Qe7 {[%emt 0:14:34]} 12. Qe2 {[%emt 0:04:12]} d5 {[%emt 0:06:42]} 13. Bd3 {[%emt 0:01:38]} Bd7 {[%emt 0:01:41]} 14. g3 {[%emt 0:03:42]} a6 $11 {[%emt 0:03:13]} 15. h5 {[%emt 0:02:44]} 1/2-1/2

[Event "1st 4NCL International U2050"]
[Site "Telford"]
[Date "2018.11.04"]
[Round "9"]
[White "Chen, Daniel Xingyu"]
[Black "Aubury, Benjamin"]
[Result "1/2-1/2"]
[ECO "B10"]
[WhiteElo "1258"]
[BlackElo "1566"]
[Annotator "NA RC"]
[PlyCount "89"]
[EventDate "2018.10.31"]
[EventType "swiss"]
[EventCountry "GBR"]
[SourceTitle "playchess.com"]
[Source "ChessBase"]
[SourceQuality "1"]
[TimeControl "5400+30"]

1. e4 {[%emt 0:00:00]} c6 {[%emt 0:00:01]} 2. d3 {[%emt 0:00:00]} d5 {[%emt 0:00:09]} 3. Nd2 {[%emt 0:00:08]} g6 {[%emt 0:00:17]} 4. Ngf3 {[%emt 0:00:17]} Bg7 {[%emt 0:00:05]} 5. g3 {[%emt 0:00:23]} e5 {[%emt 0:00:17]} 6. Bg2 {[%emt 0:01:06]} Ne7 {[%emt 0:00:51]} 7. O-O {[%emt 0:01:19]} O-O {[%emt 0:00:07]} 8. b3 {[%emt 0:01:25]} f5 {[%emt 0:03:32]} 9. Bb2 {[%emt 0:01:07]} Qc7 {[%emt 0:01:17]} 10. Re1 {[%emt 0:01:28]} Nd7 {[%emt 0:01:14]} 11. a4 {[%emt 0:03:39]} f4 {[%emt 0:01:28]} 12. Ba3 {[%emt 0:05:10]} Re8 {[%emt 0:05:39]} 13. Ng5 {[%emt 0:01:50]} Nf6 {[%emt 0:01:48]} 14. Ngf3 {[%emt 0:02:05]} Nd7 {[%emt 0:03:38]} 15. Ng5 {[%emt 0:00:47]} Nf6 {[%emt 0:06:13]} 16. Ngf3 {[%emt 0:00:10]} fxg3 {[%emt 0:00:31]} 17. fxg3 {[%emt 0:00:35]} Qb6+ {[%emt 0:01:01]} 18. Kh1 {[%emt 0:01:21]} Ng4 {[%emt 0:01:27]} 19. Rf1 {[%emt 0:09:01]} Nf2+ {[%emt 0:00:24]} 20. Rxf2 {[%emt 0:00:07]} Qxf2 {[%emt 0:00:17]} 21. Bd6 {[%emt 0:00:58]} Bg4 {[%emt 0:01:01]} 22. Qc1 {[%emt 0:01:59]} Nc8 {[%emt 0:02:07]} 23. Ba3 {[%emt 0:00:55]} Bh6 {[%emt 0:04:04]} 24. Qf1 {[%emt 0:03:20]} Qxf1+ {[%emt 0:00:00]} 25. Nxf1 {[%emt 0:00:16]} Nb6 {[%emt 0:00:00]} 26. h3 {[%emt 0:02:16]} Bxf3 {[%emt 0:00:00]} 27. Bxf3 {[%emt 0:00:12]} Rad8 {[%emt 0:00:10]} 28. a5 {[%emt 0:03:12]} Nc8 {[%emt 0:00:52]} 29. Nh2 {[%emt 0:01:42]} dxe4 {[%emt 0:00:26]} 30. Bxe4 {[%emt 0:00:47]} Nd6 {[%emt 0:00:23]} 31. Bg2 {[%emt 0:01:21]} Nb5 {[%emt 0:01:19]} 32. Ng4 {[%emt 0:02:06]} Bg7 {[%emt 0:00:37]} 33. Bb4 {[%emt 0:00:31]} e4 {[%emt 0:00:26]} 34. Rd1 {[%emt 0:02:18]} h5 {[%emt 0:01:56]} 35. Nf2 {[%emt 0:02:06]} exd3 {[%emt 0:04:59]} 36. Nxd3 {[%emt 0:00:27]} Re2 {[%emt 0:03:15]} 37. Rc1 {[%emt 0:02:26]} Bh6 {[%emt 0:00:59]} 38. Bf3 {[%emt 0:00:37]} Bxc1 {[%emt 0:03:10]} 39. Bxe2 {[%emt 0:00:38]} Be3 {[%emt 0:00:29]} 40. Ne5 {[%emt 0:01:10]} Kg7 {[%emt 0:04:20]} 41. Bd3 {[%emt 0:01:22]} Kf6 {[%emt 0:06:49]} 42. Nc4 {[%emt 0:04:35]} Bd4 {[%emt 0:00:57]} 43. Nd2 {[%emt 0:01:11]} Kg7 {[%emt 0:01:17]} 44. Ne4 {[%emt 0:02:46]} Rd5 {[%emt 0:04:51]} 45. c4 {[%emt 0:01:29]} 1/2-1/2